fUSD/lending_fUSD_20240717
["ID","MTS","AMOUNT","RATE_DAILY","PERIOD"]
[332469667,1721213444371,-162.0,0.00017378,2]
[332469669,1721213444380,-260.862,0.00017378,2]
[332469671,1721213444389,-163.842,0.00017378,2]
[332469673,1721213444399,-1201.0,0.00017378,2]
[332469675,1721213444408,-150.34,0.00017378,2]
[332469677,1721213444418,-162.074,0.00017378,2]
[332469679,1721213444427,-151.403,0.00017378,2]
[332469681,1721213444437,-197.271,0.00017378,2]
[332469683,1721213444446,-1072.0,0.00017378,2]
[332469685,1721213444456,-170.948,0.00017378,2]
[332469687,1721213444466,-247.019,0.00017378,2]
[332469689,1721213444476,-158.6553615,0.0001745,2]
[332469691,1721213444485,-252.26112096,0.0001745,2]
[332469693,1721213444496,-160.17280274,0.0001745,2]
[332469695,1721213444505,-1000.0,0.000175,2]
[332469697,1721213444516,-3000.0,0.0001754,2]
[332469699,1721213444526,-323.27224502,0.0001756,2]
[332469701,1721213444535,-155.0,0.00017566,2]
[332469703,1721213444545,-18152.10989908,0.00017642,7]
[332469705,1721213444555,-1463.92533635,0.00017787,2]
[332469707,1721213444564,-1036.0,0.000178,2]
[332469709,1721213444574,-484.24,0.00017816,2]
[332469711,1721213444584,-5410.80497485,0.00017889,2]
[332469713,1721213444594,-350.11143717,0.00017925,2]
[332469716,1721213444604,-180.81,0.00017972,2]
[332469718,1721213444614,-192.92,0.00017972,2]
[332469720,1721213444623,-256.37,0.00017972,2]
[332469721,1721213444632,-784.89,0.00017972,2]
[332469723,1721213444642,-169.24,0.00017972,2]
[332469725,1721213444652,-823.0,0.00017978,2]
[332469727,1721213444661,-274.35835659,0.00017999,2]
[332469729,1721213444671,-1000.0,0.00018,2]
[332469731,1721213444681,-150.0,0.00018037,2]
[332469733,1721213444690,-718.64766454,0.00018081,2]
[332469735,1721213444699,-5000.0,0.000181,3]
[332469737,1721213444709,-707.55,0.00018266,2]
[332469739,1721213444719,-1463.92533635,0.00018343,2]
[332469741,1721213444728,-166.66666667,0.00018395,2]
[332469743,1721213444738,-155.57001067,0.00018472,2]
[332469745,1721213444750,-166.02605396,0.00018523,2]
[332469748,1721213444763,-151.90694189,0.00018579,2]
[332469750,1721213444773,-1900.0,0.000186,6]
[332469752,1721213444782,-155.93834583,0.00018648,2]
[332469754,1721213444792,-300.0,0.000187,6]
[332469755,1721213444805,-369.54465039,0.00018717,2]
[332469758,1721213444817,-150.0,0.00018719,2]
[332469760,1721213444830,-300.0,0.0001872,2]
[332469762,1721213444839,-150.0,0.00018724,2]
[332469764,1721213444849,-150.0,0.00018727,2]
[332469766,1721213444858,-150.0,0.00018729,2]
[332469767,1721213444868,-150.0,0.00018731,2]
[332469768,1721213444877,-150.0,0.00018732,2]
[332469770,1721213444886,-300.0,0.00018733,2]
[332469772,1721213444896,-150.0,0.00018733,2]
[332469774,1721213444905,-300.0,0.00018735,2]
[332469776,1721213444915,-150.0,0.00018736,2]
[332469778,1721213444925,-150.0,0.00018737,2]
[332469780,1721213444934,-150.0,0.00018739,2]
[332469782,1721213444944,-1500.0,0.00018743,2]
[332469784,1721213444953,-150.0,0.00018744,2]
[332469786,1721213444963,-150.0,0.00018744,2]
[332469788,1721213444972,-150.0,0.00018749,2]
[332469790,1721213444981,-150.0,0.0001875,2]
[332469792,1721213444990,-1500.0,0.00018751,2]
[332469794,1721213445000,-150.0,0.00018753,2]
[332469796,1721213445009,-150.0,0.00018753,2]
[332469798,1721213445019,-150.0,0.00018754,2]
[332469800,1721213445028,-300.0,0.00018757,2]
[332469802,1721213445037,-150.0,0.00018757,2]
[332469803,1721213445047,-150.0,0.00018759,2]
[332469806,1721213445057,-150.0,0.00018762,2]
[332469807,1721213445067,-150.0,0.00018762,2]
[332469809,1721213445076,-300.0,0.00018763,2]
[332469811,1721213445085,-150.0,0.00018766,2]
[332469813,1721213445095,-716.99836668,0.00018768,2]
[332469815,1721213445104,-150.0,0.0001877,2]
[332469817,1721213445114,-150.0,0.00018771,2]
[332469819,1721213445123,-300.0,0.00018774,2]
[332469821,1721213445133,-150.0,0.00018775,2]
[332469823,1721213445143,-150.0,0.00018776,2]
[332469825,1721213445152,-150.0,0.00018778,2]
[332469827,1721213445161,-150.0,0.00018778,2]
[332469829,1721213445172,-85732.62444322,0.0001878,2]
[332469831,1721213445182,-150.0,0.00018783,2]
[332469833,1721213445191,-323.27224502,0.00018783,2]
[332469835,1721213445200,-150.0,0.00018785,2]
[332469837,1721213445209,-150.0,0.00018785,2]
[332469839,1721213445218,-300.0,0.00018787,2]
[332469841,1721213445228,-150.0,0.00018788,2]
[332469843,1721213445237,-150.0,0.00018788,2]
[332469845,1721213445246,-3000.0,0.0001879,2]
[332469847,1721213445256,-150.0,0.00018795,2]
[332469849,1721213445266,-150.0,0.00018795,2]
[332469851,1721213445275,-302.6917053,0.00018796,2]
[332469853,1721213445284,-150.0,0.000188,2]
[332469855,1721213445293,-300.0,0.000188,6]
[332469857,1721213445304,-150.0,0.00018804,2]
[332469859,1721213445313,-150.0,0.00018805,2]
[332469861,1721213445322,-300.0,0.00018806,2]
[332469863,1721213445332,-150.0,0.00018808,2]
[332469865,1721213445342,-150.0,0.00018811,2]
[332469867,1721213445353,-150.0,0.00018812,2]
[332469869,1721213445362,-150.0,0.00018816,2]
[332469871,1721213445372,-150.0,0.00018817,2]
[332469873,1721213445381,-150.0,0.00018818,2]
[332469875,1721213445390,-150.0,0.00018818,2]
[332469877,1721213445399,-150.0,0.00018821,2]
[332469879,1721213445408,-150.0,0.00018822,2]
[332469881,1721213445417,-300.0,0.00018824,2]
[332469883,1721213445426,-300.0,0.0001883,2]
[332469885,1721213445435,-150.0,0.0001883,2]
[332469887,1721213445444,-150.0,0.00018831,2]
[332469889,1721213445453,-150.0,0.00018838,2]
[332469891,1721213445463,-1500.0,0.00018839,2]
[332469893,1721213445472,-271.81527384,0.0001884,2]
[332469895,1721213445481,-1500.0,0.00018845,2]
[332469897,1721213445491,-150.0,0.00018845,2]
[332469899,1721213445499,-150.0,0.00018846,2]
[332469901,1721213445510,-1500.00000097,0.00018848,10]
[332469903,1721213445519,-150.0,0.00018849,2]
[332469905,1721213445528,-331.13,0.00018849,30]
[332469907,1721213445537,-157.39515504,0.0001885,2]
[332469909,1721213445547,-150.0,0.00018854,2]
[332469910,1721213445555,-150.0,0.00018855,2]
[332469912,1721213445565,-150.0,0.00018855,2]
[332469914,1721213445574,-150.0,0.00018858,2]
[332469916,1721213445584,-150.0,0.0001886,2]
[332469918,1721213445594,-150.0,0.00018861,2]
[332469920,1721213445603,-150.0,0.00018864,2]
[332469922,1721213445613,-544.18500554,0.00018864,2]
[332469925,1721213445622,-150.0,0.00018866,2]
[332469927,1721213445632,-150.0,0.00018867,2]
[332469929,1721213445642,-150.0,0.00018867,2]
[332469931,1721213445651,-150.0,0.00018867,2]
[332469933,1721213445660,-364.0545306,0.00018871,2]
[332469935,1721213445670,-150.0,0.00018873,2]
[332469937,1721213445680,-5800.0,0.00018875,2]
[332469939,1721213445689,-150.0,0.00018875,2]
[332469941,1721213445699,-150.0,0.00018875,2]
[332469942,1721213445708,-150.0,0.00018879,2]
[332469944,1721213445717,-1500.0,0.00018879,2]
[332469946,1721213445727,-300.0,0.00018882,2]
[332469948,1721213445736,-5800.0,0.00018883,2]
[332469950,1721213445746,-300.0,0.00018884,2]
[332469952,1721213445760,-150.0,0.00018884,2]
[332469954,1721213445769,-1500.0,0.00018886,2]
[332469956,1721213445779,-150.0,0.0001889,2]
[332469958,1721213445788,-5800.0,0.00018892,2]
[332469960,1721213445798,-202.70953531,0.00018893,2]
[332469962,1721213445807,-150.0,0.00018894,2]
[332469964,1721213445817,-150.0,0.00018895,2]
[332469966,1721213445826,-150.0,0.00018897,2]
[332469968,1721213445838,-150.0,0.00018898,2]
[332469970,1721213445848,-150.0,0.00018899,2]
[332469985,1721213445857,-616.45345182,0.00018899,2]
[332469987,1721213445985,-5800.0,0.000189,2]
[332469989,1721213445994,-1463.92533635,0.000189,2]
[332469991,1721213446004,-300.0,0.000189,6]
[332469993,1721213446013,-178.93428259,0.000189,2]
[332469994,1721213446022,-737.4163198,0.000189,2]
[332469996,1721213446031,-379.43154196,0.000189,2]
[332469998,1721213446041,-150.0,0.00018902,2]
[332470000,1721213446051,-1000.0,0.00018905,2]
[332470002,1721213446060,-1000.0,0.00018905,2]
[332470004,1721213446069,-1000.0,0.00018905,2]
[332470006,1721213446078,-1000.0,0.00018905,2]
[332470008,1721213446088,-1000.0,0.00018905,2]
[332470010,1721213446097,-1000.0,0.00018905,2]
[332470012,1721213446106,-1000.0,0.00018905,2]
[332470014,1721213446115,-1000.0,0.00018905,2]
[332470016,1721213446124,-1000.0,0.00018905,2]
[332470018,1721213446134,-1000.0,0.00018905,2]
[332470020,1721213446143,-534.9576,0.00018905,2]
[332470022,1721213446153,-150.0,0.00018911,2]
[332470024,1721213446163,-150.0,0.00018913,2]
[332470026,1721213446172,-150.0,0.00018913,2]
[332470028,1721213446182,-300.0,0.00018913,2]
[332470030,1721213446191,-150.0,0.00018914,2]
[332470033,1721213446199,-300.0,0.00018917,2]
[332470035,1721213446208,-1500.0,0.00018925,2]
[332470037,1721213446218,-150.0,0.00018927,2]
[332470039,1721213446227,-166.66666668,0.00018927,2]
[332470041,1721213446236,-150.0,0.00018931,2]
[332470043,1721213446245,-150.0,0.00018936,2]
[332470044,1721213446254,-150.0,0.00018937,2]
[332470047,1721213446264,-150.0,0.00018937,2]
[332470049,1721213446274,-150.0,0.00018937,2]
[332470050,1721213446283,-150.0,0.00018937,2]
[332470052,1721213446292,-150.0,0.00018942,2]
[332470054,1721213446301,-890.33722425,0.00018944,2]
[332470056,1721213446311,-300.0,0.00018946,2]
[332470058,1721213446320,-200.0,0.00018948,2]
[332470060,1721213446330,-150.0,0.00018949,2]
[332470062,1721213446339,-150.0,0.00018952,2]
[332470064,1721213446348,-151.90694189,0.00018952,2]
[332470066,1721213446358,-300.0,0.00018953,2]
[332470067,1721213446367,-150.0,0.00018954,2]
[332470068,1721213446376,-300.0,0.00018954,2]
[332470069,1721213446385,-150.0,0.00018955,2]
[332470070,1721213446395,-150.0,0.0001896,2]
[332470071,1721213446404,-150.0,0.00018965,2]
[332470072,1721213446413,-150.0,0.00018966,2]
[332470073,1721213446423,-150.0,0.00018967,2]
[332470074,1721213446432,-150.0,0.00018969,2]
[332470075,1721213446442,-150.0,0.00018971,2]
[332470076,1721213446452,-1500.0,0.00018972,2]
[332470077,1721213446461,-300.0,0.00018972,2]
[332470078,1721213446472,-150.0,0.00018976,2]
[332470079,1721213446482,-1500.0,0.00018979,2]
[332470080,1721213446492,-150.0,0.0001898,2]
[332470081,1721213446502,-184.09406241,0.00018986,2]
[332470082,1721213446512,-160.16932197,0.00018988,2]
[332470083,1721213446522,-1434.86866535,0.00018988,2]
[332470084,1721213446532,-3781.98208709,0.00018988,2]
[332470085,1721213446541,-150.0,0.00018992,2]
[332470086,1721213446551,-292.33438899,0.00018999,2]
[332470088,1721213446560,-1537.04393083,0.00018999,2]
[332470090,1721213446569,-150.0,0.00018999,2]
[332470092,1721213446579,-150.0,0.00018999,2]
[332470094,1721213446588,-97823.16395079,0.00019,7]
[332470174,1721213447789,-342160.0,0.00019,7]
[332470175,1721213447806,-3592.32883106,0.00019,7]
[332470176,1721213447818,-4730.10899832,0.00019,7]
[332470177,1721213447831,-8479.63585047,0.00019,7]
[332470178,1721213447847,-3465.7968536,0.00019,7]
[332470179,1721213447859,-657.39,0.00019,7]
[332470180,1721213447870,-985.16346411,0.00019,7]
[332470181,1721213447944,-690.90239874,0.0001386,2]
[332470182,1721213447955,-782.42653634,0.0001386,2]
[332470183,1721213447967,-313.354957,0.0001386,2]
[332470184,1721213447978,-3334.31610792,0.0001386,2]
[332470185,1721213447987,-594.79752808,0.00015,2]
[332470186,1721213447998,-9252.54199913,0.00015,2]
[332470194,1721213541883,5606.20280149,0.00011199,2]
[332470195,1721213628168,1265.58472584,0.00011199,2]
[332470199,1721213904102,10794.13347667,0.00011199,2]
[332470200,1721213904137,9613.06146883,0.00011199,2]
[332470201,1721213904167,4333.38327126,0.00011199,2]
[332470202,1721213907717,9367.95449525,0.00011199,2]
[332470207,1721214030936,155.14066495,0.00011199,2]
[332470226,1721214168994,8648.43542489,0.00011199,2]
[332470234,1721214268393,492.62763125,0.00011199,2]
[332470237,1721214279615,369.54465039,0.00011199,2]
[332470257,1721214623548,1984.78330199,0.00011199,2]
[332470271,1721214635040,-250.0,0.00011981,2]
[332470272,1721214635050,-327.76847127,0.00011981,2]
[332470273,1721214635061,-781.70152873,0.00011981,2]
[332470274,1721214635071,-164.32825762,0.0001214,2]
[332470275,1721214635080,-5092.85066311,0.00012273,2]
[332470276,1721214635090,-1394.97948114,0.00012302,2]
[332470277,1721214635099,-492.62763125,0.00012302,2]
[332470278,1721214635108,-300.0,0.00012313,2]
[332470279,1721214635118,-1656.075688,0.00012935,2]
[332470280,1721214635128,-550.0,0.00013,2]
[332470281,1721214635137,-300.0,0.00013128,2]
[332470282,1721214635147,-1014.21710702,0.00013128,2]
[332470283,1721214635161,-860.2,0.00013128,2]
[332470284,1721214635170,-1344.19139935,0.00013128,2]
[332470285,1721214635180,-957.97321156,0.00013472,2]
[332470286,1721214635191,-786.61421136,0.00013472,2]
[332470287,1721214635200,-420.0,0.00013513,2]
[332470288,1721214635209,-155.53218327,0.00013516,2]
[332470289,1721214635218,-2487.32350878,0.0001365,2]
[332470290,1721214635229,-418.9,0.0001368,2]
[332470291,1721214635238,-645.37628817,0.00013759,2]
[332470292,1721214635248,-3412.90259082,0.00013759,2]
[332470293,1721214635259,-476.68989804,0.00013849,2]
[332470294,1721214635268,-616.45345182,0.00013849,2]
[332470295,1721214635278,-648.87718761,0.00013849,2]
[332470296,1721214635287,-616.45345182,0.00013849,2]
[332470297,1721214635296,-2870.9923,0.00013889,2]
[332470298,1721214635305,-592.06449892,0.00013889,2]
[332470299,1721214635314,-276.18433692,0.00013889,2]
[332470300,1721214635324,-724.99156236,0.00013889,2]
[332470301,1721214635334,-413.37996369,0.00013889,2]
[332470302,1721214635344,-150.0,0.00013898,2]
[332470303,1721214635354,-182.90557106,0.00013899,2]
[332470304,1721214635363,-196.65850358,0.00013899,2]
[332470305,1721214635373,-157.5996525,0.00013899,2]
[332470306,1721214635382,-366.11090361,0.00013989,2]
[332470307,1721214635392,-544.18500554,0.00013989,2]
[332470308,1721214635401,-304.71289066,0.00013989,2]
[332470309,1721214635411,-155.0,0.00013989,2]
[332470310,1721214635420,-200.0,0.00014485,2]
[332470311,1721214635429,-499.99,0.00014499,2]
[332470312,1721214635438,-13108.21,0.00014581,2]
[332470313,1721214635449,-587.0,0.00014829,2]
[332470314,1721214635459,-1737.53,0.00014849,2]
[332470315,1721214635468,-427.19,0.0001489,2]
[332470316,1721214635477,-150.0,0.00014891,2]
[332470317,1721214635486,-227.39291056,0.00014899,2]
[332470318,1721214635495,-600.0,0.00015,2]
[332470319,1721214635505,-14821.05082886,0.00015,2]
[332470320,1721214635515,-255.0,0.00015024,2]
[332470321,1721214635524,-477.51,0.00015047,2]
[332470322,1721214635533,-2575.21,0.00015069,2]
[332470323,1721214635543,-250.0,0.00015111,2]
[332470324,1721214635552,-152.35,0.00015165,2]
[332470325,1721214635561,-344.53,0.00015165,2]
[332470326,1721214635570,-250.0,0.00015182,2]
[332470327,1721214635579,-23900.0,0.0001531,2]
[332470328,1721214635588,-264.43,0.00015397,2]
[332470329,1721214635598,-1322.90276768,0.00015399,2]
[332470330,1721214635607,-2044.95,0.00015429,2]
[332470331,1721214635616,-433.79,0.00015483,2]
[332470332,1721214635625,-500.0,0.00015565,2]
[332470333,1721214635634,-1000.0,0.00015834,5]
[332470334,1721214635643,-418.9,0.00015944,2]
[332470335,1721214635652,-150.0,0.00016247,2]
[332470336,1721214635662,-823.0,0.00016274,2]
[332470337,1721214635671,-3061.2673878,0.00016699,2]
[332470338,1721214635680,-11491.0,0.000168,5]
[332470339,1721214635690,-477.51,0.00016928,2]
[332470340,1721214635699,-188.48,0.00016973,2]
[332470341,1721214635708,-10000.0,0.00016989,2]
[332470342,1721214635717,-281.20056531,0.00016999,2]
[332470343,1721214635727,-650.0,0.00017,2]
[332470344,1721214635736,-2498.02656989,0.00017,2]
[332470345,1721214635745,-173.49,0.00017314,2]
[332470346,1721214635755,-1910.60120592,0.00017498,2]
[332470347,1721214635765,-445.0,0.00017598,2]
[332470348,1721214635774,-206.607,0.00017598,2]
[332470349,1721214635784,-549.0,0.00017598,2]
[332470350,1721214635793,-262.988,0.00017598,2]
[332470351,1721214635803,-2380.0,0.00017598,2]
[332470352,1721214635812,-150.0,0.00017598,2]
[332470353,1721214635822,-3280.0,0.00017598,2]
[332470354,1721214635831,-1990.0,0.00017598,2]
[332470355,1721214635841,-38269.0,0.00017598,2]
[332470356,1721214635850,-5180.0,0.00017598,2]
[332470357,1721214635859,-5815.0,0.00017598,2]
[332470358,1721214635868,-1201.0,0.00017598,2]
[332470359,1721214635878,-1665.0,0.00017598,2]
[332470360,1721214635888,-164.32825762,0.00017678,2]
[332470361,1721214635898,-480.16,0.00017778,2]
[332470362,1721214635908,-2825.9802,0.00017778,2]
[332470363,1721214635917,-3553.14973082,0.00017778,2]
[332470364,1721214635930,-1536.85026918,0.00017778,2]
[332470365,1721214635939,-2500.0,0.00017778,2]
[332470366,1721214635949,-502.0,0.0001786,2]
[332470367,1721214635959,-150.56,0.00017878,2]
[332470368,1721214635968,-218.063,0.00017878,2]
[332470369,1721214635978,-203.23,0.00017878,2]
[332470370,1721214635987,-169.441,0.00017878,2]
[332470371,1721214635997,-245.474,0.00017878,2]
[332470372,1721214636007,-1829.0,0.00017878,2]
[332470373,1721214636019,-1661.0,0.00017878,2]
[332470374,1721214636029,-361.0,0.00017878,2]
[332470375,1721214636038,-1252.0,0.00017878,2]
[332470376,1721214636047,-845.197,0.00017878,2]
[332470377,1721214636057,-166.0,0.00017878,2]
[332470378,1721214636066,-620.0,0.00017878,2]
[332470379,1721214636075,-503.946,0.00017878,2]
[332470380,1721214636084,-159.33986452,0.00018043,2]
[332470381,1721214636093,-159.33986452,0.00018159,2]
[332470382,1721214636103,-418.9,0.00018208,2]
[332470383,1721214636111,-1709.18,0.0001828,2]
[332470384,1721214636121,-1910.60120587,0.0001832,2]
[332470385,1721214636130,-167.61,0.00018407,2]
[332470386,1721214636140,-152.64471479,0.00018418,2]
[332470387,1721214636151,-155.57001067,0.00018603,2]
[332470388,1721214636163,-152.64471479,0.00018621,2]
[332470389,1721214636172,-419.00943635,0.00018655,2]
[332470390,1721214636182,-152.64471479,0.00018743,2]
[332470391,1721214636191,-1007.8326,0.00018747,2]
[332470392,1721214636200,-150.0,0.00018764,2]
[332470393,1721214636209,-559.648773,0.000188,3]
[332470394,1721214636218,-477.51,0.00018809,2]
[332470395,1721214636227,-150.0,0.00018822,2]
[332470396,1721214636239,-361.12535917,0.00018832,2]
[332470397,1721214636248,-500.0,0.00018847,2]
[332470398,1721214636259,-200.0,0.00018847,2]
[332470399,1721214636268,-500.0,0.00018848,2]
[332470400,1721214636278,-500.0,0.00018848,2]
[332470401,1721214636287,-500.0,0.00018848,2]
[332470402,1721214636296,-200.0,0.00018848,2]
[332470403,1721214636305,-303.53,0.00018849,30]
[332470404,1721214636314,-524.24242336,0.00018864,2]
[332470405,1721214636324,-150.0,0.00018878,2]
[332470406,1721214636336,-340.94673624,0.00018896,2]
[332470407,1721214636345,-7500.0,0.000189,2]
[332470408,1721214636356,-2749.8265633,0.000189,2]
[332470409,1721214636366,-549.9653127,0.000189,2]
[332470410,1721214636375,-2596.57714182,0.000189,2]
[332470411,1721214636384,-2251.80545675,0.000189,2]
[332470412,1721214636393,-185.66455592,0.000189,2]
[332470413,1721214636403,-323.2783352,0.000189,2]
[332470414,1721214636412,-5146.21343043,0.000189,2]
[332470415,1721214636425,-72.51608103,0.000189,2]
[332470416,1721214636434,-1000.0,0.00018912,5]
[332470417,1721214636443,-152.64471479,0.00018949,2]
[332470418,1721214636453,-200.0,0.00018975,2]
[332470419,1721214636462,-761.0,0.00018986,2]
[332470420,1721214636472,-545.12425415,0.00018999,2]
[332470421,1721214636483,-328.64556,0.00018999,2]
[332470422,1721214636494,-542.89684585,0.00018999,2]
[332470423,1721214636503,-215.56378611,0.00018999,2]
[332470424,1721214636516,-284.43621389,0.00018999,2]
[332470425,1721214636525,-200.2184993,0.00018999,2]
[332470426,1721214636534,-230.56801342,0.00018999,2]
[332470427,1721214636545,-254.51191498,0.00018999,2]
[332470428,1721214636554,-500.0,0.00018999,2]
[332470429,1721214636564,-500.0,0.00018999,2]
[332470430,1721214636573,-500.0,0.00018999,2]
[332470431,1721214636582,-500.0,0.00018999,2]
[332470432,1721214636591,-500.0,0.00018999,2]
[332470433,1721214636600,-500.0,0.00018999,2]
[332470434,1721214636610,-500.0,0.00018999,2]
[332470435,1721214636619,-500.0,0.00018999,2]
[332470436,1721214636628,-478.94522347,0.00018999,2]
[332470437,1721214636637,-500.0,0.00018999,2]
[332470438,1721214636647,-500.0,0.00018999,2]
[332470439,1721214636656,-427.03698551,0.00018999,2]
[332470440,1721214636665,-500.0,0.00018999,2]
[332470441,1721214636675,-500.0,0.00018999,2]
[332470442,1721214636684,-304.90067394,0.00018999,2]
[332470443,1721214636693,-500.0,0.00018999,2]
[332470444,1721214636702,-500.0,0.00018999,2]
[332470445,1721214636711,-500.0,0.00018999,2]
[332470446,1721214636721,-500.0,0.00018999,2]
[332470447,1721214636964,-500.0,0.00018999,2]
[332470448,1721214636974,-500.0,0.00018999,2]
[332470449,1721214636983,-500.0,0.00018999,2]
[332470450,1721214636993,-500.0,0.00018999,2]
[332470451,1721214637002,-500.0,0.00018999,2]
[332470452,1721214637013,-500.0,0.00018999,2]
[332470453,1721214637023,-481.40183375,0.00018999,2]
[332470454,1721214637032,-500.0,0.00018999,2]
[332470455,1721214637042,-500.0,0.00018999,2]
[332470456,1721214637051,-500.0,0.00018999,2]
[332470457,1721214637061,-540.0,0.00018999,2]
[332470458,1721214637071,-51777.4732313,0.00019,7]
[332470459,1721214637083,-873.0,0.00019,7]
[332470460,1721214637303,-500.0,0.00019,7]
[332470461,1721214637314,-1171.32115809,0.00019,7]
[332470462,1721214637331,-253526.97980178,0.00019,7]
[332470463,1721214637343,-2074.08917925,0.00019,7]
[332470466,1721214638689,-10000.0,0.00016989,2]
[332470467,1721214638699,-1072.0,0.00017598,2]
[332470468,1721214638708,-735177.62471104,0.00019,7]
[332470469,1721214638718,-1484418.7548989,0.00019,2]
[332470470,1721214638730,-600.0,0.00019,2]
[332470471,1721214638742,-609.33506131,0.00019,2]
[332470473,1721214638769,-8491.66447959,0.00019,2]
[332470475,1721214638781,-2709.48663959,0.00019,2]
[332470476,1721214638798,-60635.29296637,0.00019,2]
[332470477,1721214638810,-31400.0,0.00019,2]
[332470482,1721214640520,-769.40917737,0.00016989,2]
[332470483,1721214640531,-639.14654176,0.00016989,2]
[332470484,1721214640708,-492.62681269,0.00016989,2]
[332470485,1721214640719,-1630.6,0.00016989,2]
[332470679,1721214643529,-388.68457034,0.00016989,2]
[332470689,1721214643585,-4164.17035019,0.00016989,2]
[332470691,1721214643594,-58541.51396293,0.00019,2]
[332470699,1721214643647,-319.999995,0.00019,2]
[332470703,1721214643713,-263.1500001,0.00019,2]
[332470709,1721214644056,-862463.32279991,0.00019,2]
[332470710,1721214644068,-265.6000002,0.00019,2]
[332470711,1721214644079,-653.31270692,0.00019,2]
[332470712,1721214644091,-6536.59989526,0.00019,2]
[332470733,1721214646372,-644.28818466,0.0001881,2]
[332470736,1721214646460,-3946.85157832,0.0001881,2]
[332470737,1721214646472,-16104.86023702,0.0001881,2]
[332470738,1721214646482,-278.23,0.00018849,30]
[332470739,1721214646491,-40023.67016906,0.00019,2]
[332470740,1721214646528,-414.86354645,0.00019,2]
[332470741,1721214646627,-66180.45952378,0.00019,2]
[332470742,1721214646639,-4036.61298945,0.00019,2]
[332470743,1721214646725,-864.844875,0.00019,2]
[332470744,1721214646737,-117309.04389,0.00019,2]
[332470745,1721214646810,-10463.70163011,0.00019,2]
[332470757,1721214765589,18371.25404788,0.00011199,2]
[332470759,1721214811020,4649.46598771,0.00011199,2]
[332470760,1721214821884,5392.40963011,0.00011199,2]
[332470770,1721214865228,-232.547553,0.0001192,2]
[332470771,1721214865254,-300.0,0.0001198,2]
[332470772,1721214865279,-17467.452447,0.00011981,2]
[332470774,1721214885145,-920.0,0.00011981,2]
[332470776,1721214901064,2381.42864796,0.00011199,2]
[332470781,1721214958249,7562.74211172,0.00011199,2]
[332470782,1721214977683,616.92384194,0.00011199,2]
[332470786,1721215001797,15451.9318012,0.00011199,2]
[332470787,1721215015510,155.61766402,0.00011199,2]
[332470792,1721215071714,400.44480684,0.00011199,2]
[332470793,1721215076643,328.50066625,0.00011199,2]
[332470795,1721215099717,1108.15437771,0.00011199,2]
[332470800,1721215213940,492.62763125,0.00011199,2]
[332470801,1721215268862,544.18500554,0.00011199,2]
[332470818,1721215644475,294.66736,0.00011199,2]
[332470868,1721215831458,-155.0,0.00012273,2]
[332470871,1721215831469,-289.44535886,0.000125,2]
[332470874,1721215831479,-758.25289816,0.0001251,2]
[332470876,1721215831488,-550.0,0.00013,2]
[332470878,1721215831497,-226.16052857,0.00013516,2]
[332470880,1721215831506,-150.0,0.00013573,2]
[332470882,1721215831515,-105979.66659987,0.00013574,2]
[332470883,1721215831525,-685.81454762,0.00013574,2]
[332470885,1721215831534,-500.0,0.00013999,2]
[332470886,1721215831547,-189.55594988,0.00013999,2]
[332470887,1721215831556,-500.0,0.00013999,2]